Workbook

Sheet IDC UDF
A1: IDC Circular Reference
B4: Uses of Funds
D5: Cap Exp | E5: =SUM(G5:K5) -> 660 | G5: 100 | H5: 200 | I5: 300 | J5: 50 | K5: 10
D6: IDC | E6: =SUM(G6:K6) -> 61.37216156 | G6: =G17 -> 0 | H6: =H17 -> 3.6 | I6: =I17 -> 10.9296 | J6: =J17 -> 22.1230656 | K6: =K17 -> 24.71949596
D7: Total | E7: =SUM(G7:K7) -> 721.3721616 | G7: =SUM(G5:G6) -> 100 | H7: =SUM(H5:H6) -> 203.6 | I7: =SUM(I5:I6) -> 310.9296 | J7: =SUM(J5:J6) -> 72.1230656 | K7: =SUM(K5:K6) -> 34.71949596
D9: Total Debt | E9: 0.9 | F9: =E9*E7 -> 649.2349454
D10: Pro-Rata Percent | E10: =E7 -> 721.3721616 | G10: =G7/$E$7 -> 0.1386247007 | H10: =H7/$E$7 -> 0.2822398907 | I10: =I7/$E$7 -> 0.4310252274 | J10: =J7/$E$7 -> 0.09998038383 | K10: =K7/$E$7 -> 0.04812979737
D11: Debt Draws | E11: =F9 -> 649.2349454 | G11: =G10*$E$11 -> 90 | H11: =H10*$E$11 -> 183.24 | I11: =I10*$E$11 -> 279.83664 | J11: =J10*$E$11 -> 64.91075904 | K11: =K10*$E$11 -> 31.24754637
B13: Debt Balance
D14: Opening Balance | G14: =F16 -> 0 | H14: =G16 -> 90 | I14: =H16 -> 273.24 | J14: =I16 -> 553.07664 | K14: =J16 -> 617.987399
D15: Add: Debt | G15: =G11 -> 90 | H15: =H11 -> 183.24 | I15: =I11 -> 279.83664 | J15: =J11 -> 64.91075904 | K15: =K11 -> 31.24754637
D16: Closing Balance | G16: =G14+G15 -> 90 | H16: =H14+H15 -> 273.24 | I16: =I14+I15 -> 553.07664 | J16: =J14+J15 -> 617.987399 | K16: =K14+K15 -> 649.2349454
D17: IDC | E17: 0.04 | G17: =G19 -> 0 | H17: =H19 -> 3.6 | I17: 10.9296 | J17: 22.1230656 | K17: 24.71949596
B19: UDF Function | G19: =idc_result($E$17,$E$9,G5:K5) -> 0 | H19: 3.6 | I19: 10.9296 | J19: 22.1230656 | K19: 24.71949596
G20: =G14*$E$17 -> 0 | H20: 0 | I20: 0 | J20: 0 | K20: 0
D21: Verification | G21: =G14*$E$17 -> 0 | H21: =H14*$E$17 -> 3.6 | I21: =I14*$E$17 -> 10.9296 | J21: =J14*$E$17 -> 22.1230656 | K21: =K14*$E$17 -> 24.71949596
D22: Difference | E22: =SUM(G22:K22) -> 0 | F22: =E22=0 -> TRUE | G22: =G21-G19 -> 0 | H22: =H21-H19 -> 0 | I22: =I21-I19 -> 0 | J22: =J21-J19 -> 0 | K22: =K21-K19 -> 0
D24: Test No Dependent | E24: 100
D25: Test No Dependent | E25: 200

Sheet Colouring Transferred and Dep
B1: Column | C1: 30
B2: Row | C2: 10
A3: 1 | B3: 2 | C3: 3 | D3: 4 | E3: 5 | F3: 6 | G3: 7 | H3: 8 | I3: 9 | J3: 10 | K3: 11 | L3: 12 | M3: 13 | N3: 14 | O3: 15 | P3: 16 | Q3: 17 | R3: 18 | S3: 19 | T3: 20 | U3: 21 | V3: 22 | W3: 23 | X3: 24 | Y3: 25 | Z3: 26
A4: 4 | C4: Input 1 | D4: 100
A5: 5 | C5: Input 2 | D5: 200 | F5: From Input | G5: 100 | H5: 100 | I5: 100 | J5: 100 | K5: 100 | L5: =$D$4 -> 100 | M5: 100 | N5: 100 | O5: 100 | P5: 100 | Q5: 100 | R5: 100 | S5: 100 | T5: 100 | U5: 100 | V5: 100 | W5: 100 | X5: 100 | Y5: 100 | Z5: 100
A6: 6 | C6: Input 3 | D6: 400 | F6: From Input | G6: =$D$8 -> 500 | H6: =$D$8 -> 500 | I6: 500 | J6: 500 | K6: 500 | L6: 500 | M6: 500 | N6: 500 | O6: 500 | P6: 500 | Q6: 500 | R6: 500 | S6: 500 | T6: 500 | U6: 500 | V6: 500 | W6: 500 | X6: 500 | Y6: 500 | Z6: 500
A7: 7 | C7: Input 4 | D7: 600 | F7: Calculation | G7: =G6 -> 500 | H7: =SUM(H5:H6) -> 600 | I7: =I6 -> 500 | J7: 600 | K7: 600 | L7: 600 | M7: 600 | N7: 600 | O7: 600 | P7: 600 | Q7: 600 | R7: 600 | S7: 600 | T7: 600 | U7: 600 | V7: 600 | W7: 600 | X7: 600 | Y7: 600 | Z7: 600
A8: 8 | C8: Input 5 | D8: 500 | F8: Input | G8: =$D$10 -> 100 | H8: =$D$10 -> 100 | I8: 100 | J8: 100 | K8: 100 | L8: 100 | M8: 100 | N8: 100 | O8: 100 | P8: 100 | Q8: 100 | R8: 100 | S8: 100 | T8: 100 | U8: 100 | V8: 100 | W8: 100 | X8: 100 | Y8: 100 | Z8: 100
A9: 9 | C9: Input 6 | D9: 1000 | F9: Total | G9: 440 | H9: =SUM(H5:H8) -> 1300 | I9: =I7 -> 500 | J9: 1300 | K9: 1300 | L9: 1300 | M9: 1300 | N9: 1300 | O9: 1300 | P9: 1300 | Q9: 1300 | R9: 1300 | S9: 1300 | T9: 1300 | U9: 1300 | V9: 1300 | W9: 1300 | X9: 1300 | Y9: 1300 | Z9: 1300
A10: 10 | C10: Total | D10: =D4 -> 100
C12: Output | D12: =D7 -> 600
C13: Output
P15: Alt, M, A | Q15: Remove
P16: Alt, M, D Dependents
P17: Alt, M, P Precedents
F19: Red | G19: =Colours!B2 -> 246 | H19: =Colours!B2 -> 246 | I19: red1 | K19: Row Start | L19: 4
F20: Green | G20: =Colours!B3 -> 51 | H20: =Colours!B3 -> 51 | I20: green1 | K20: Row End | L20: 10
F21: Blue | G21: =Colours!B4 -> 255 | H21: =Colours!B4 -> 255 | I21: blue1 | K21: Col Start | L21: 3
K22: Col End | L22: 30
G23: Slow | H23: FALSE

Sheet Transfererd Sheet
H2: Fee Percent | I2: 0.0175
H3: Debt Percent | I3: 0.6
B5: Fee Circular Reference | H5: Cap Exp | I5: 1000
H6: Fees | I6: =K6 -> 10.6870229 | K6: =I5*I3*I2/(1-I2) -> 10.6870229
B7: Fees = Debt * Fee Percent | H7: Total Cost | I7: =SUM(I5:I6) -> 1010.687023
B8: Debt = Total Project Cost * Debt Perent
B9: Project Cost = Other Cost + Fees | H9: Debt | I9: =I7*I3 -> 606.4122137 | J9: =I9/I7 -> 0.6
B10: Other Cost = Project Cost - Fees
B12: Other Cost = Project Cost - Debt * Fee Percent
B13: Other Cost = Project Cost - Project Cost * Debt Percent
B14: Other Cost = Project Cost * (1-Debt Percent)

Sheet New Sheet
C2: Alt, M, A Remove
A3: ='Colouring Transferred and Dep'!A3 -> 1 | C3: Alt, M, D Dependents
A4: ='Colouring Transferred and Dep'!A4 -> 4 | C4: Alt, M, P Precedents
A5: ='Colouring Transferred and Dep'!A5 -> 5
A6: ='Colouring Transferred and Dep'!A6 -> 6
A7: ='Colouring Transferred and Dep'!A7 -> 7
A8: ='Colouring Transferred and Dep'!A8 -> 8 | C8: From Other Sheet | E8: ='Colouring Transferred and Dep'!G8 -> 100 | F8: ='Colouring Transferred and Dep'!H8 -> 100 | G8: ='Colouring Transferred and Dep'!I8 -> 100 | H8: ='Colouring Transferred and Dep'!J8 -> 100 | I8: ='Colouring Transferred and Dep'!K8 -> 100 | J8: ='Colouring Transferred and Dep'!L8 -> 100 | K8: ='Colouring Transferred and Dep'!M8 -> 100
A9: ='Colouring Transferred and Dep'!A9 -> 9
A10: ='Colouring Transferred and Dep'!A10 -> 10 | C10: From Other Sheet | E10: ='Colouring Transferred and Dep'!H9 -> 1300 | F10: ='Colouring Transferred and Dep'!H9 -> 1300 | G10: ='Colouring Transferred and Dep'!I9 -> 500 | H10: ='Colouring Transferred and Dep'!J9 -> 1300 | I10: ='Colouring Transferred and Dep'!K9 -> 1300 | J10: ='Colouring Transferred and Dep'!L9 -> 1300 | K10: ='Colouring Transferred and Dep'!M9 -> 1300
A11: ='Colouring Transferred and Dep'!A11 -> 0
A12: ='Colouring Transferred and Dep'!A12 -> 0
A13: ='Colouring Transferred and Dep'!A13 -> 0 | C13: From Other Page
A14: ='Colouring Transferred and Dep'!A14 -> 0
A15: ='Colouring Transferred and Dep'!A15 -> 0
A16: ='Colouring Transferred and Dep'!A16 -> 0
A17: ='Colouring Transferred and Dep'!A17 -> 0 | B17: ='Colouring Transferred and Dep'!B3 -> 2 | C17: ='Colouring Transferred and Dep'!C3 -> 3 | D17: ='Colouring Transferred and Dep'!D3 -> 4 | E17: ='Colouring Transferred and Dep'!E3 -> 5 | F17: ='Colouring Transferred and Dep'!F3 -> 6 | G17: ='Colouring Transferred and Dep'!G3 -> 7 | H17: ='Colouring Transferred and Dep'!H3 -> 8 | I17: ='Colouring Transferred and Dep'!I3 -> 9 | J17: ='Colouring Transferred and Dep'!J3 -> 10 | K17: ='Colouring Transferred and Dep'!K3 -> 11 | L17: ='Colouring Transferred and Dep'!L3 -> 12 | M17: ='Colouring Transferred and Dep'!M3 -> 13 | N17: ='Colouring Transferred and Dep'!N3 -> 14 | O17: ='Colouring Transferred and Dep'!O3 -> 15 | P17: ='Colouring Transferred and Dep'!P3 -> 16 | Q17: ='Colouring Transferred and Dep'!Q3 -> 17 | R17: ='Colouring Transferred and Dep'!R3 -> 18 | S17: ='Colouring Transferred and Dep'!S3 -> 19 | T17: ='Colouring Transferred and Dep'!T3 -> 20 | U17: ='Colouring Transferred and Dep'!U3 -> 21 | V17: ='Colouring Transferred and Dep'!V3 -> 22 | W17: ='Colouring Transferred and Dep'!W3 -> 23 | X17: ='Colouring Transferred and Dep'!X3 -> 24 | Y17: ='Colouring Transferred and Dep'!Y3 -> 25 | Z17: ='Colouring Transferred and Dep'!Z3 -> 26 | AA17: ='Colouring Transferred and Dep'!AA3 -> 0 | AB17: ='Colouring Transferred and Dep'!AB3 -> 0 | AC17: ='Colouring Transferred and Dep'!AC3 -> 0 | AD17: ='Colouring Transferred and Dep'!AD3 -> 0 | AE17: ='Colouring Transferred and Dep'!AE3 -> 0 | AF17: ='Colouring Transferred and Dep'!AF3 -> 0 | AG17: ='Colouring Transferred and Dep'!AG3 -> 0 | AH17: ='Colouring Transferred and Dep'!AH3 -> 0 | AI17: ='Colouring Transferred and Dep'!AI3 -> 0 | AJ17: ='Colouring Transferred and Dep'!AJ3 -> 0 | AK17: ='Colouring Transferred and Dep'!AK3 -> 0

Sheet Other Sheet

Sheet Colours
B1: 1 | I1: 1 | M1: 2 | V1: 3
A2: R | B2: =CHOOSE($B$1,I2,M2,V2) -> 246 | I2: 246 | M2: 132 | V2: 255
A3: G | B3: =CHOOSE($B$1,I3,M3,V3) -> 51 | D3: https://htmlcolorcodes.com/ | I3: 51 | M3: 255 | V3: 221
A4: B | B4: 255 | I4: 255 | M4: 51 | V4: 51
